Cogmind - Beta 16 --- EXPLORER MODE // 2025.11.22 @ 15:37:12 // AFD2020/Player2 Player: RR-3MY Result: Destroyed by G1-HVT(R) with Subdweller Machine Gun Performance ------------- Evolutions (0) 0 Regions Visited (2) 400 Robots Destroyed (20) 100 Value Destroyed (398) 398 Prototype IDs (0) 0 Alien Tech Used (0) 0 Bonus (74) 74 TOTAL SCORE: 972 Bonus ------- Follower Combat Kills 110 Friendly Fire -36 Cogmind --------- Core Integrity 0/250 Matter 254/300 Energy 91/100 System Corruption 1% Temperature Cool (0) Movement Rolling (100) Location -10/Subcaves Parts ------- > --- POWER (1) -------- (None) > --- PROPULSION (2) --- Compact Wheel > --- UTILITY (3) ------ Medium Storage Unit > --- WEAPON (2) ------- Medium Laser Assault Rifle > --- INVENTORY (10) --- Wheel Signal Interpreter Seismic Detector Light Armor Plating Light Assault Rifle Light Cannon Mining Laser Peak State ------------ > --- POWER ------------ Ion Engine > --- PROPULSION ------- Wheel Compact Wheel > --- UTILITY ---------- Heat Sink Medium Storage Unit Seismic Detector > --- WEAPON ----------- Medium Laser Medium Laser > --- INVENTORY -------- Light Treads Signal Interpreter Seismic Detector Light Armor Plating Assault Rifle Light Assault Rifle Light Cannon Mining Laser [Rating: 8] Favorites ----------- Power Ion Engine Engine Ion Engine Propulsion Light Treads Treads Light Treads Leg Aluminum Leg Wheel Compact Wheel Utility Medium Storage Unit Device Seismic Detector Storage Medium Storage Unit Weapon Medium Laser Energy Gun Medium Laser Ballistic Gun Light Assault Rifle Ballistic Cannon Light Cannon Special Weapon Mining Laser Build | -11 -10 -10 ------- Run | Yrd Mat Sub Slots Evolved 1 | . 1 . Power . | . . . Propulsion . | . . . Utility 1 | . 1 . Weapon . | . . . Parts Attached 18 | 7 10 1 Power 1 | 1 . . Engine 1 | 1 . . Core . | . . . Reactor . | . . . Propulsion 6 | 2 4 . Treads 2 | 2 . . Leg 2 | . 2 . Wheel 2 | . 2 . Hover . | . . . Flight . | . . . Utility 3 | 2 1 . Device 2 | 1 1 . Storage 1 | 1 . . Processor . | . . . Hackware . | . . . Protection . | . . . Artifact . | . . . Weapon 8 | 2 5 1 Energy Gun 2 | 1 1 . Energy Cannon . | . . . Ballistic Gun 3 | 1 1 1 Ballistic Cannon 2 | . 2 . Launcher . | . . . Special Weapon 1 | . 1 . Impact Weapon . | . . . Slashing Weapon . | . . . Piercing Weapon . | . . . Special Melee Weapon . | . . . Unidentified Prototypes . | . . . Parts Lost 5 | . . 5 Power 1 | . . 1 Propulsion 1 | . . 1 Utility 2 | . . 2 Weapon 1 | . . 1 Highest Loss Streak 4 | . . 4 To Critical Strikes . | . . . Average Backups 5 | 2 5 7 Power . | . . . Propulsion . | . . 1 Utility 2 | . 2 3 Weapon 2 | . 2 3 Tool/Special . | . . . Unused Backups 6 | . 2 4 Power 1 | . 1 . Propulsion 1 | . . 1 Utility 4 | . 1 3 Weapon . | . . . Tool/Special . | . . . Average Slot Usage (%) 81 | . 80 86 Engine 11 | . 11 10 Treads 6 | . 8 . Leg 6 | . 7 . Wheel 5 | . 3 13 Device 15 | . 13 25 Storage 12 | . 12 12 Energy Gun 11 | . 10 20 Ballistic Gun 5 | . 6 1 Ballistic Cannon 4 | . 5 . Peak Build Rating 8 | 7 8 8 Average Rating 6 | 5 6 6 On Entrance 5 | . 7 8 Avg Prop Armor Cover (%) . | . . . Naked Turns . | . . . Heaviest Build 22 | 19 22 21 Greatest Support 40 | 40 40 26 Greatest Overweight (x) 5 | 3 5 1 Average Overweight (x) . | . . . Largest Inventory Capacity 10 | 10 10 10 Average Capacity 9 | 9 10 10 Most Carried 8 | 4 8 8 Average Carried 5 | 2 5 7 Final Capacity 10 | 10 10 10 Final Carried 8 | 4 8 7 Class Distribution -------------------- 100% | Hacker-Mutant Dominant Class ---------------- Hacker-Mutant | -10/Materials Hacker-Mutant | -10/Subcaves Resources | -11 -10 -10 ----------- Run | Yrd Mat Sub Matter Collected 531 | 256 251 24 Remotely . | . . . Salvage Created 606 | 104 455 47 Parts 38 | 7 30 1 Haulers Intercepted 1 | . 1 . Recyclers Shooed . | . . . Parts Field Recycled . | . . . Retrieved Matter . | . . . Parts Self-Destructed . | . . . Prevented . | . . . Parts Restored . | . . . Kills | -11 -10 -10 ------- Run | Yrd Mat Sub Combat Hostiles Destroyed 10 | . 9 1 Guns 9 | . 8 1 Cannons 1 | . 1 . Classes Destroyed 8 | 2 5 1 Worker 3 | . 3 . Tunneler 3 | 3 . . Hauler 1 | . 1 . Recycler 1 | 1 . . Watcher 2 | . 2 . Swarmer 2 | . 2 . Grunt 7 | . 7 . Subdweller 1 | . . 1 Best Kill Streak 4 | 2 4 1 Combat Bots Only 2 | . 2 1 Max Kills in Single Turn 2 | 1 2 1 Gunslinging 1 | . 1 . Exploded . | . . . Melee . | . . . Uniques/NPCs Destroyed . | . . . Combat | -11 -10 -10 -------- Run | Yrd Mat Sub Hostile Shots Fired 78 | . 47 31 Missed 20 | . 16 4 Hits 58 | . 31 27 Projectile 58 | . 31 27 Critical Strikes 1 | . 1 . Damage Taken 723 | . 271 452 Core 164 | . 48 116 Absorbed by Shields . | . . . Ignored by Resistances 393 | . 178 215 Core Remaining (%) 100 | 100 . . Volleys Fired 72 | 13 37 22 Largest 2 | 2 2 2 Hottest 150 | 70 100 150 Shots Fired 143 | 26 73 44 Gun 128 | 26 63 39 Cannon 9 | . 9 . Launcher . | . . . Special 6 | . 1 5 Kinetic 57 | 13 32 12 Thermal 86 | 13 41 32 Explosive . | . . . Electromagnetic . | . . . Robot Hit Streak 27 | 13 27 27 Robot Miss Streak 4 | 1 4 1 Penetration Max . | . . . Secondary Targets 3 | . 3 . Max Gunslinging Chain 1 | . 1 . Shots Hit Robots 109 | 20 56 33 Core Hits 35 | 6 25 4 Critical Kills . | . . . Critical Parts Destroyed . | . . . Critical Strikes 7 | 1 6 . Burn 7 | 1 6 . Melee Attacks . | . . . Impact . | . . . Slashing . | . . . Piercing . | . . . Sneak Attacks . | . . . Combat Hostiles . | . . . Follow-up Attacks . | . . . Damage Inflicted 1080 | 209 709 162 Guns 957 | 209 586 162 Cannons 123 | . 123 . Explosions . | . . . Melee . | . . . Ramming . | . . . Kinetic 419 | 74 295 50 Thermal 661 | 135 414 112 Explosive . | . . . Electromagnetic . | . . . Impact . | . . . Slashing . | . . . Piercing . | . . . Highest Corruption 1 | . 1 1 Average Corruption 1 | . 1 1 Corruption Purged . | . . . Corruption Blocked . | . . . Effects 9 | . 6 3 Matter Fused 3 | . 2 1 Energy Discharges 1 | . . 1 Data Loss (minor) 4 | . 4 . Misfires 1 | . . 1 Overload Shots . | . . . Overflow Damage . | . . . Projectiles . | . . . Explosions . | . . . Melee . | . . . Knockbacks 2 | . 2 . Impact . | . . . Kinetic 2 | . 2 . Secondary . | . . . Self-Inflicted Damage . | . . . Shots . | . . . Rammed . | . . . Targets Rammed . | . . . Kicked . | . . . Crushed . | . . . Highest Temperature 263 | 110 263 10 Average Temperature 55 | 45 59 7 Received Heat Transfer 117 | . 111 6 Effects 2 | . 2 . Energy Bleed 1 | . 1 . Interference 1 | . 1 . Siege Activations . | . . . Martial Activations . | . . . Shielding Activations . | . . . Robots Disrupted . | . . . Combat Hostiles . | . . . Robots Corrupted . | . . . Combat Hostiles . | . . . Parts Fried . | . . . Impact Corruptions . | . . . Robots Melted . | . . . Combat Hostiles . | . . . Parts Melted 4 | 2 2 . Heat Transferred 2479 | 481 1665 333 Parts Sabotaged . | . . . Parts Stolen . | . . . Parts Stripped . | . . . Power Chain Reactions . | . . . Alert | -11 -10 -10 ------- Run | Yrd Mat Sub Maximum Alert Level . | . . . Low Security (%) 100 | 100 100 . Level 1 . | . . . Level 2 . | . . . Level 3 . | . . . Level 4 . | . . . Level 5 . | . . . High Security . | . . . Max Security . | . . . Peak Influence 131 | 10 131 . Initial . | . . . Average 19 | 1 22 . Influence Increases 492 | 20 472 . Destroy 0b10 Robot/C 260 | . 260 . Destroy 0b10 Robot/NC 55 | 20 35 . Destroy Leader 68 | . 68 . Allied During Kill 19 | . 19 . Successful Hack 24 | . 24 . Select Force Hacks 60 | . 60 . Disable Machine 4 | . 4 . Destroy Structure 2 | . 2 . Influence Decreases 492 | 20 385 87 Entered New Map 55 | . . 55 Time Decay 427 | 20 385 22 Lost Part 10 | . . 10 Squads Dispatched 2 | . 2 . Investigation 2 | . 2 . Extermination . | . . . Reinforcement . | . . . Assault . | . . . Garrison . | . . . Intercept . | . . . Searches Triggered . | . . . Construction Impeded . | . . . Haulers Reinforced . | . . . Active Scanning Responses . | . . . Cargo Convoy Interrupts . | . . . Stealth | -11 -10 -10 --------- Run | Yrd Mat Sub Distress Signals . | . . . Communications Jammed . | . . . Distress Signals . | . . . Times Spotted 19 | . 16 3 Peak Tracking Total 2 | . 2 2 Tactical Retreats . | . . . Traps | -11 -10 -10 ------- Run | Yrd Mat Sub Traps Triggered 5 | . 3 2 Indirectly . | . . . Trap Hack Attempts . | . . . Triggered . | . . . Disarmed 1 | . 1 . Reprogrammed . | . . . Reused . | . . . Traps Extracted . | . . . Installed . | . . . Triggered . | . . . Machines | -11 -10 -10 ---------- Run | Yrd Mat Sub Machines Disabled 1 | . 1 . Max in Single Turn . | . . . Machines Repaired . | . . . Machines Dismantled . | . . . Machines Sabotaged . | . . . Overloaded Fab Kills . | . . . Hacking | -11 -10 -10 --------- Run | Yrd Mat Sub Machines Accessed 10 | . 10 . Terminals 8 | . 8 . Fabricators . | . . . Repair Stations . | . . . Recycling Units 2 | . 2 . Scanalyzers . | . . . Garrison Access . | . . . Total Hacks 33 | . 33 . Successful 26 | . 26 . Failed 7 | . 7 . Catastrophic . | . . . Database Lockouts . | . . . Manual 24 | . 24 . Terminals 28 | . 28 . Fabricators . | . . . Repair Stations . | . . . Recycling Units 5 | . 5 . Scanalyzers . | . . . Garrison Access . | . . . Terminal Hacks 10 | . 10 . Part Schematic 5 | . 5 . Locate Traps 1 | . 1 . Disarm Traps 1 | . 1 . Hauler Manifests 2 | . 2 . Registered Components 1 | . 1 . Fabricator Hacks . | . . . Repair Station Hacks . | . . . Recycling Unit Hacks 2 | . 2 . Retrieve Components 2 | . 2 . Scanalyzer . | . . . Garrison Access Hacks . | . . . Unauthorized Hacks 14 | . 14 . Terminals 12 | . 12 . Botnet 6 | . 6 . Skim 6 | . 6 . Fabricators . | . . . Repair Stations . | . . . Recycling Units 2 | . 2 . Tunnel 2 | . 2 . Scanalyzers . | . . . Garrison Access . | . . . Data Cores Recovered . | . . . Used . | . . . Hacking Detections 8 | . 8 . Full Trace Events . | . . . Feedback Events . | . . . Feedback Blocked . | . . . Robot Schematics Acquired . | . . . Robots Built . | . . . Authchips . | . . . Time . | . . . Total Robot Build Rating . | . . . Part Schematics Acquired 5 | . 5 . Parts Built . | . . . Authchips . | . . . Time . | . . . Total Part Build Rating . | . . . Part Studies Acquired . | . . . Parts Repaired . | . . . Time . | . . . Parts Recycled . | . . . Recycled Matter . | . . . Retrieved Matter . | . . . Retrieved Components 16 | . 16 . Parts Scanalyzed . | . . . Part Schematics Acquired . | . . . Parts Damaged . | . . . Bothacking | -11 -10 -10 ------------ Run | Yrd Mat Sub Used RIF Installer . | . . . Robots Hacked . | . . . Non-combat . | . . . Combat . | . . . Robot Hacks Applied . | . . . Relay Couplers Released . | . . . Fabnet Peak Effective % . | . . . Robots Rewired . | . . . Allies Hacked . | . . . Hacks Repelled . | . . . Allies | -11 -10 -10 -------- Run | Yrd Mat Sub Total Allies 1 | . 1 . Largest Group 1 | . 1 1 Highest-Rated Group 59 | . 59 59 Highest-Rated Ally 59 | . 59 59 Total Orders . | . . . Ally Attacks 51 | . 31 20 Total Damage 509 | . 455 54 Kills 5 | . 5 . Allies Corrupted . | . . . Allies Melted . | . . . Intel | -11 -10 -10 ------- Run | Yrd Mat Sub Active Infowar (turns) 1342 | 53 1090 199 Seismic 1342 | 53 1090 199 Robot Analysis Total . | . . . Derelict Logs Recovered . | . . . Drone Launches . | . . . Drone Recoveries . | . . . Exploration | -11 -10 -10 ------------- Run | Yrd Mat Sub Turns Passed 1487 | 172 1110 205 Spaces Moved 868 | 78 683 107 Core 7 | 6 1 . Treads 377 | 72 305 . Legs 245 | . 245 . Wheels 239 | . 132 107 Hover . | . . . Flight . | . . . Fastest Speed 50 | 50 90 90 Average Speed 133 | 155 134 110 Slowest Speed 300 | 200 300 115 Overloaded Moves . | . . . Propulsion Burnouts . | . . . Robots Hopped . | . . . Potential Cave-ins . | . . . Cave-ins Triggered . | . . . Exploration Rate (%) 37 | 5 96 12 Regions Visited 2 Branch Regions 1 Pre-discovered Areas 4 | . 4 . Known Exits Taken 2 | 1 1 . Unknown Exits Taken . | . . . Scrap Searched . | . . . Spaces Dug 1 | . 1 . Terrain Destroyed 1 | . 1 . Melee . | . . . Projectile 1 | . 1 . AOE . | . . . Terrain Rammed . | . . . Walls Destroyed . | . . . Machines Disabled . | . . . Actions | -11 -10 -10 --------- Run | Yrd Mat Sub Total 1041 | 102 803 136 Wait 55 | 1 51 3 Move 866 | 77 682 107 Hop . | . . . Pick Up 11 | 4 7 . Fast Attach 18 | 7 11 . Attach 2 | . 1 1 Detach 2 | . 2 . Swap 6 | . 3 3 Drop 9 | . 9 . Fire 72 | 13 37 22 Melee . | . . . Ram . | . . . Kick . | . . . Crush . | . . . Escape Stasis . | . . . Rewire . | . . . Trap . | . . . Miscellaneous . | . . . Route ------- -11/Scrapyard -10/Materials (discovered 6 exits: *Mat x3 / *Min x2 / *Sub) -10/Subcaves History --------- Turn | Location | Event 5 | -11/Scrapyard | Identified exit to Materials 5 | -11/Scrapyard | Discovered exit to Materials (range 16) 173 | -11/Scrapyard | Entered Materials 173 | -10/Materials | Evolved 1 slot: Utility x1 247 | -10/Materials | Identified exit to Mines 247 | -10/Materials | Discovered exit to Mines (range 7) 310 | -10/Materials | Build established: Hacker-Mutant 407 | -10/Materials | Identified exit to Materials 407 | -10/Materials | Discovered exit to Materials (range 10) 473 | -10/Materials | Discovered exit to Mines (range 14) 830 | -10/Materials | Discovered exit to Materials (range 10) 915 | -10/Materials | Learned location of 2 exits from Mines 955 | -10/Materials | Identified exit to Subcaves 987 | -10/Materials | Learned Storage interactive machine intel 1011 | -10/Materials | Learned location of 3 exits from Materials 1024 | -10/Materials | Learned location of 2 exits from Mines 1029 | -10/Materials | Learned 4 Recycling zone layouts 1055 | -10/Materials | Learned location of Storage (-8) 1083 | -10/Materials | Learned 2 Mines zone layouts 1283 | -10/Materials | Entered Subcaves 1442 | -10/Subcaves | A swath of the cavern ceiling suddenly collapsed 1449 | -10/Subcaves | Core integrity fell below 50% 1463 | -10/Subcaves | Core integrity fell below 20% 1488 | -10/Subcaves | Destroyed by G1-HVT(R) with Subdweller Machine Gun Last Messages --------------- 01415_ System corrupted: FCS attempts to trigger Med. Laser. 01415_ System corrupted: Med. Laser misfires. 01424_ Subatomizers dissect the Sub. Power Source. 01440_ System corrupted: Energy discharge (-61). A swath of the cavern ceiling suddenly collapses. 01446_ Med. Laser destroyed. 01448_ Subatomizers dissect the Sub. Power Source. 01458_ Ion Engine destroyed. 01470_ CA-TJF(R) affixes Scrap Shield Fragment to Scrap Shield. 01471_ Subatomizers dissect the Sub. Power Source. 01482_ Seismic Detector destroyed. 01484_ Subatomizers dissect the Sub. Power Source. 01484_ Heat Sink destroyed. Map ----- +----------------------------------------------------+ | ????????????????????????????????????????????# ??? | | ???????????????????????????????????????????? ??? | | ???????????????????????????????????????????## ??? | | ???????????????????????????????????????????? ??# | | ????????????????????????????????????????????# #?## | | ?????????????????????????????????????#####??# ### | | ???????????????????????????????####### # #### # | | ???????????????????????????????# | | ???????????????????????????????## ###### # ##### | | ???????????????????????????????# #???######???# | | ???????????????????????????????## ##????????????# | | ????????????????????????????????# #?????????????## | | ??????????????????????????????### #??????????????? | | ???????????????????????????#### ##?????????????? | | ???????????????????????????# #?????????????? | | ???????????????????????????# # # #?????????????? | | ??????????????????##???????# ######?????????????? | | ????????????????### ??????# #??????????????????? | | ????????????????? ??""### #??????????????????? | | ?????????????????? """"## #??????????????????? | | ????????????????# ? """""# ##?????????????????? | | ????????????????? ## #"""## #?????????????????? | | ??????????????????? ## #?????????????????? | | ????????????????????? "# & #?????????????????? | | ??????????????????????# """## ##????????????????? | | ??????????????????????# "@R"R* #????????????????? | | ??????????????????????# @ "" #????????????????? | | ??????????????????????# ;# " "#????????????????? | | ??????????????????????#;;### ""##????????????????? | | ?????????????????????##;##?## ##?????????????????? | | ????????????????????# ## ??###??????????????????? | | ??????????????????? ""#??????????????????????? | | ??????????????????### """ ??????????????????????? | | ????????????????????#### ??????????????????????? | | ???????????????????????## ?????????????????????? | | ?????????????????????????## ?????????????????????? | | ??????????????????????????? ?????????????????????? | | ??????????????????????????? ????????????????????? | | ??????????????????????????? ????????????????????? | | ????????????????????????????#????????????????????? | | ?????????????????????????????????????????????????? | | ?????????????????????????????????????????????????? | | ?????????????????????????????????????????????????? | | ?????????????????????????????????????????????????? | | ?????????????????????????????????????????????????? | | ?????????????????????????????????????????????????? | | ?????????????????????????????????????????????????? | | ?????????????????????????????????????????????????? | | ?????????????????????????????????????????????????? | | ?????????????????????????????????????????????????? | +----------------------------------------------------+ Best States ------------- Heat Dissipation 35 Energy Generation 10 Energy Capacity 250 Matter Stores 300 Matter Capacity 300 Sight Range 16 Terrain Scan Density 10 Resistance: KI 35 Resistance: TH 35 Resistance: EX 35 Resistance: EM 35 Resistance: I 35 Resistance: S 35 Resistance: P 35 Evasion (%) 55 Recoil Reduction 2 Offensive Hacking 20 Item Schematics ----------------- Lrg. Storage Unit | -10/Materials | Hacked Hcp. Storage Unit | -10/Materials | Hacked Med. Storage Unit | -10/Materials | Hacked Hcp. Matter Pod | -10/Materials | Hacked Hcp. Battery | -10/Materials | Hacked Robot Schematics ------------------ None Fabricated ------------ Nothing Repaired ---------- Nothing Studied --------- None Alien Tech Used ----------------- None Achievements -------------- None Challenges ------------ None Player 2 | -11 -10 -10 ---------- Run | Yrd Mat Sub Slots Evolved . | . . . Power . | . . . Propulsion . | . . . Utility . | . . . Weapon . | . . . Parts Attached 16 | . 16 . Parts Lost 1 | . . 1 Damage Taken 374 | . 120 254 Core 92 | . 30 62 Player 2/Cogmind (%) 35 | . 38 34 Absorbed by Shields . | . . . Damage Inflicted 509 | . 455 54 Player 2/Cogmind (%) 32 | . 39 25 Combat Hostiles Destroyed 4 | . 4 . Player 2/Cogmind (%) 28 | . 30 . Game ------ Seed ExoskeletonPortableStorm Manual? 0 Play Time 00:15:40 Cumulative 97.2 hours Start 2025.11.22 @ 15:23:01 End 2025.11.22 @ 15:37:12 Sessions 1 Manual Loads 0 Difficulty Explorer Special Mode AFD2020/Player2 Game No. 25 Rogue 0 Adventurer 3 Explorer 22 Win Type - Total 11 Types 4/1/1/2/0/0/1/0/0/2 Lore% 58 Gallery% 47 Achievement% 46 Wizard Run 0 Options --------- Layout 2 ASCII 0 Keyboard 0 Movement Mouse Keybinds 0 Fullscreen 1 Font 24/Smallcaps Map View 50x44 Zoom Use 0% Tactical HUD 1 Map Filters NONE Filters NONE Steam 1 RUN: 20e0eaa0-6f54-49ce-a847-66bee7597bed